[Event "Titled Tuesday Blitz October 31 Early 2023"]
[White "Rodriguez Dominguez, Melissa"]
[Black "Aaditya Dhingra"]
[WhiteFideId "3517560"]
[BlackFideId "25678191"]
[WhiteElo "2186"]
[BlackElo "2586"]
[Result "0-1"]
[Round "1"]
[TimeControl "180+1"]
[Date "2023.10.31"]
[WhiteClock "0:00:14"]
[BlackClock "0:00:41"]
[Board "168"]

1. e4 {[%clk 0:02:54]}  c6 {[%clk 0:02:59]} 2. c4 {[%clk 0:02:52]}  e5 {[%clk 0:02:53]} 3. Nf3 {[%clk 0:02:46]}  d6 {[%clk 0:02:53]} 4. d4 {[%clk 0:02:43]}  Nd7 {[%clk 0:02:51]} 5. Nc3 {[%clk 0:02:38]}  Ngf6 {[%clk 0:02:49]} 6. Be2 {[%clk 0:02:27]}  Qc7 {[%clk 0:02:48]} 7. O-O {[%clk 0:02:23]}  g6 {[%clk 0:02:47]} 8. h3 {[%clk 0:02:19]}  Bg7 {[%clk 0:02:46]} 9. Be3 {[%clk 0:02:13]}  O-O {[%clk 0:02:46]} 10. d5 {[%clk 0:01:58]}  c5 {[%clk 0:02:40]} 11. Rb1 {[%clk 0:01:54]}  b6 {[%clk 0:02:31]} 12. b4 {[%clk 0:01:52]}  cxb4 {[%clk 0:02:22]} 13. Nb5 {[%clk 0:01:50]}  Qb8 {[%clk 0:02:20]} 14. Rxb4 {[%clk 0:01:49]}  Nxe4 {[%clk 0:02:18]} 15. a4 {[%clk 0:01:35]}  a6 {[%clk 0:02:07]} 16. Na3 {[%clk 0:01:34]}  Qc7 {[%clk 0:02:00]} 17. Qb3 {[%clk 0:01:25]}  Nec5 {[%clk 0:01:54]} 18. Qb1 {[%clk 0:01:19]}  h6 {[%clk 0:01:46]} 19. Qc1 {[%clk 0:01:16]}  Kh7 {[%clk 0:01:44]} 20. Nh2 {[%clk 0:01:15]}  f5 {[%clk 0:01:42]} 21. f4 {[%clk 0:01:14]}  exf4 {[%clk 0:01:27]} 22. Bxf4 {[%clk 0:01:14]}  Ne5 {[%clk 0:01:28]} 23. Qb1 {[%clk 0:01:02]}  Ne4 {[%clk 0:01:20]} 24. Qb3 {[%clk 0:00:33]}  Nd7 {[%clk 0:00:57]} 25. Qb1 {[%clk 0:00:26]}  Nc3 {[%clk 0:00:45]} 26. Qc2 {[%clk 0:00:24]}  Qc5+ {[%clk 0:00:43]} 27. Kh1 {[%clk 0:00:22]}  Qxb4 {[%clk 0:00:42]} 28. Bd2 {[%clk 0:00:14]}  Qxa3 {[%clk 0:00:41]} 0-1


[Site "https://www.chess.com"]

[Event "Titled Tuesday Blitz October 31 Early 2023"]
[White "Omelja, Artem"]
[Black "Floresvillar Gonzalez, Luis Migu"]
[WhiteFideId "14119846"]
[BlackFideId "5100542"]
[WhiteElo "2581"]
[BlackElo "2183"]
[Result "1-0"]
[Round "1"]
[TimeControl "180+1"]
[Date "2023.10.31"]
[WhiteClock "0:01:51"]
[BlackClock "0:00:01"]
[Board "169"]

1. e4 {[%clk 0:03:00]}  c6 {[%clk 0:02:59]} 2. d4 {[%clk 0:03:00]}  d5 {[%clk 0:02:59]} 3. e5 {[%clk 0:03:01]}  c5 {[%clk 0:02:58]} 4. Nf3 {[%clk 0:02:52]}  Bg4 {[%clk 0:02:55]} 5. dxc5 {[%clk 0:02:50]}  Nc6 {[%clk 0:02:54]} 6. h3 {[%clk 0:02:44]}  Bxf3 {[%clk 0:02:53]} 7. Qxf3 {[%clk 0:02:45]}  Nxe5 {[%clk 0:02:51]} 8. Qb3 {[%clk 0:02:44]}  Qd7 {[%clk 0:02:41]} 9. Bf4 {[%clk 0:02:40]}  Nc6 {[%clk 0:02:40]} 10. Nc3 {[%clk 0:02:39]}  e6 {[%clk 0:02:35]} 11. O-O-O {[%clk 0:02:34]}  Bxc5 {[%clk 0:02:28]} 12. Nxd5 {[%clk 0:02:11]}  exd5 {[%clk 0:02:18]} 13. Rxd5 {[%clk 0:02:12]}  Qe7 {[%clk 0:01:49]} 14. Bb5 {[%clk 0:02:09]}  Kf8 {[%clk 0:00:58]} 15. Rhd1 {[%clk 0:02:05]}  Nf6 {[%clk 0:00:16]} 16. Rxc5 {[%clk 0:02:03]}  Qxc5 {[%clk 0:00:11]} 17. Bd6+ {[%clk 0:02:02]}  Qxd6 {[%clk 0:00:08]} 18. Rxd6 {[%clk 0:02:03]}  Rd8 {[%clk 0:00:06]} 19. Qa3 {[%clk 0:01:53]}  Rxd6 {[%clk 0:00:05]} 20. Qxd6+ {[%clk 0:01:52]}  Ne7 {[%clk 0:00:01]} 21. Qd8+ {[%clk 0:01:51]} 1-0


[Site "https://www.chess.com"]

[Event "Titled Tuesday Blitz October 31 Early 2023"]
[White "Andreev, Konstantin"]
[Black "Mishra, Manoj"]
[WhiteFideId "24239305"]
[BlackFideId "5006007"]
[WhiteElo "2578"]
[BlackElo "2170"]
[Result "0-1"]
[Round "1"]
[TimeControl "180+1"]
[Date "2023.10.31"]
[WhiteClock "0:02:16"]
[BlackClock "0:01:25"]
[Board "171"]

1. e4 {[%clk 0:02:56]}  c5 {[%clk 0:02:57]} 2. Nf3 {[%clk 0:02:50]}  d6 {[%clk 0:02:55]} 3. d4 {[%clk 0:02:50]}  cxd4 {[%clk 0:02:56]} 4. Nxd4 {[%clk 0:02:51]}  Nf6 {[%clk 0:02:46]} 5. Nc3 {[%clk 0:02:40]}  a6 {[%clk 0:02:45]} 6. h4 {[%clk 0:02:38]}  e5 {[%clk 0:02:30]} 7. Nb3 {[%clk 0:02:38]}  Be6 {[%clk 0:02:30]} 8. f4 {[%clk 0:02:37]}  Be7 {[%clk 0:02:23]} 9. f5 {[%clk 0:02:36]}  Bxb3 {[%clk 0:02:21]} 10. axb3 {[%clk 0:02:36]}  Nc6 {[%clk 0:02:22]} 11. g4 {[%clk 0:02:36]}  h6 {[%clk 0:02:20]} 12. Be3 {[%clk 0:02:33]}  Nd7 {[%clk 0:01:54]} 13. Bf2 {[%clk 0:02:31]}  Nc5 {[%clk 0:01:49]} 14. Qd2 {[%clk 0:02:27]}  Nd4 {[%clk 0:01:43]} 15. O-O-O {[%clk 0:02:23]}  Ndxb3+ {[%clk 0:01:39]} 16. cxb3 {[%clk 0:02:23]}  Nxb3+ {[%clk 0:01:39]} 17. Kb1 {[%clk 0:02:24]}  Nxd2+ {[%clk 0:01:38]} 18. Rxd2 {[%clk 0:02:25]}  Qa5 {[%clk 0:01:29]} 19. Bc4 {[%clk 0:02:24]}  b5 {[%clk 0:01:28]} 20. Bb3 {[%clk 0:02:21]}  Rc8 {[%clk 0:01:27]} 21. Nd5 {[%clk 0:02:16]}  Qxd2 {[%clk 0:01:25]} 0-1


[Site "https://www.chess.com"]

[Event "Titled Tuesday Blitz October 31 Early 2023"]
[White "MIM06"]
[Black "Wartiovaara, Oliver"]
[BlackFideId "513024"]
[WhiteElo "2169"]
[BlackElo "2573"]
[Result "1-0"]
[Round "1"]
[TimeControl "180+1"]
[Date "2023.10.31"]
[WhiteClock "0:01:21"]
[BlackClock "0:00:48"]
[Board "172"]

1. e4 {[%clk 0:02:58]}  e5 {[%clk 0:02:57]} 2. Nf3 {[%clk 0:02:54]}  Nc6 {[%clk 0:02:56]} 3. Bb5 {[%clk 0:02:54]}  a6 {[%clk 0:02:46]} 4. Ba4 {[%clk 0:02:48]}  Nf6 {[%clk 0:02:45]} 5. d3 {[%clk 0:02:43]}  b5 {[%clk 0:02:39]} 6. Bb3 {[%clk 0:02:42]}  Be7 {[%clk 0:02:37]} 7. c3 {[%clk 0:02:41]}  O-O {[%clk 0:02:37]} 8. O-O {[%clk 0:02:42]}  d6 {[%clk 0:02:30]} 9. Re1 {[%clk 0:02:37]}  h6 {[%clk 0:02:13]} 10. a4 {[%clk 0:02:35]}  Rb8 {[%clk 0:02:13]} 11. h3 {[%clk 0:02:34]}  Na5 {[%clk 0:02:04]} 12. Bc2 {[%clk 0:02:30]}  c5 {[%clk 0:02:04]} 13. d4 {[%clk 0:02:27]}  exd4 {[%clk 0:01:57]} 14. cxd4 {[%clk 0:02:28]}  Nd7 {[%clk 0:01:41]} 15. axb5 {[%clk 0:02:17]}  axb5 {[%clk 0:01:41]} 16. Nc3 {[%clk 0:02:18]}  Re8 {[%clk 0:01:30]} 17. Nd5 {[%clk 0:02:15]}  Bf8 {[%clk 0:01:30]} 18. Bf4 {[%clk 0:02:14]}  c4 {[%clk 0:01:21]} 19. e5 {[%clk 0:01:42]}  Bb7 {[%clk 0:01:19]} 20. Nb4 {[%clk 0:01:31]}  dxe5 {[%clk 0:01:06]} 21. Nxe5 {[%clk 0:01:28]}  Nxe5 {[%clk 0:01:00]} 22. Bxe5 {[%clk 0:01:28]}  Bxb4 {[%clk 0:01:00]} 23. Qg4 {[%clk 0:01:23]}  Bxe1 {[%clk 0:00:48]} 24. Qxg7# {[%clk 0:01:21]} 1-0


[Site "https://www.chess.com"]

[Event "Titled Tuesday Blitz October 31 Early 2023"]
[White "Gontcharov, Vladislav"]
[Black "knightinshiningarmour16"]
[WhiteFideId "4123492"]
[WhiteElo "2573"]
[BlackElo "2166"]
[Result "1-0"]
[Round "1"]
[TimeControl "180+1"]
[Date "2023.10.31"]
[WhiteClock "0:00:43"]
[BlackClock "0:00:55"]
[Board "173"]

1. d4 {[%clk 0:02:42]}  Nf6 {[%clk 0:02:58]} 2. c4 {[%clk 0:02:41]}  e6 {[%clk 0:02:58]} 3. Nc3 {[%clk 0:02:40]}  b6 {[%clk 0:02:57]} 4. Nf3 {[%clk 0:02:37]}  Ba6 {[%clk 0:02:56]} 5. e3 {[%clk 0:02:32]}  Be7 {[%clk 0:02:55]} 6. Bd3 {[%clk 0:02:30]}  O-O {[%clk 0:02:55]} 7. O-O {[%clk 0:02:30]}  c5 {[%clk 0:02:52]} 8. d5 {[%clk 0:02:22]}  exd5 {[%clk 0:02:47]} 9. cxd5 {[%clk 0:02:22]}  Bxd3 {[%clk 0:02:45]} 10. Qxd3 {[%clk 0:02:21]}  d6 {[%clk 0:02:44]} 11. h3 {[%clk 0:02:21]}  Nbd7 {[%clk 0:02:43]} 12. e4 {[%clk 0:02:16]}  a6 {[%clk 0:02:43]} 13. a4 {[%clk 0:02:15]}  Qc7 {[%clk 0:02:42]} 14. Bf4 {[%clk 0:02:14]}  Rfe8 {[%clk 0:02:37]} 15. Bh2 {[%clk 0:02:00]}  Bf8 {[%clk 0:02:12]} 16. Rfe1 {[%clk 0:01:48]}  h6 {[%clk 0:02:12]} 17. Nd2 {[%clk 0:01:36]}  Ne5 {[%clk 0:01:57]} 18. Qe2 {[%clk 0:01:31]}  Qb7 {[%clk 0:01:50]} 19. f4 {[%clk 0:01:28]}  Ned7 {[%clk 0:01:44]} 20. Qd3 {[%clk 0:01:27]}  Rab8 {[%clk 0:01:37]} 21. e5 {[%clk 0:01:26]}  dxe5 {[%clk 0:01:37]} 22. fxe5 {[%clk 0:01:26]}  Nh7 {[%clk 0:01:36]} 23. e6 {[%clk 0:01:26]}  fxe6 {[%clk 0:01:33]} 24. Bxb8 {[%clk 0:01:26]}  Nxb8 {[%clk 0:01:31]} 25. Rxe6 {[%clk 0:01:20]}  Rxe6 {[%clk 0:01:31]} 26. dxe6 {[%clk 0:01:20]}  Nc6 {[%clk 0:01:30]} 27. Nf3 {[%clk 0:01:14]}  Nf6 {[%clk 0:01:27]} 28. Nd5 {[%clk 0:01:08]}  Nb4 {[%clk 0:01:07]} 29. Nxf6+ {[%clk 0:01:03]}  gxf6 {[%clk 0:01:07]} 30. Qg6+ {[%clk 0:00:57]}  Qg7 {[%clk 0:01:07]} 31. Qe4 {[%clk 0:00:57]}  Bd6 {[%clk 0:01:03]} 32. Rd1 {[%clk 0:00:53]}  Qe7 {[%clk 0:00:59]} 33. Nh4 {[%clk 0:00:50]}  Be5 {[%clk 0:00:56]} 34. Qg6+ {[%clk 0:00:44]}  Qg7 {[%clk 0:00:55]} 35. Rd8# {[%clk 0:00:43]} 1-0


[Site "https://www.chess.com"]

[Event "Titled Tuesday Blitz October 31 Early 2023"]
[White "borocotoajua"]
[Black "Feliz Dotel, Dewar Bienvenido"]
[BlackFideId "6402801"]
[WhiteElo "2567"]
[BlackElo "2136"]
[Result "1-0"]
[Round "1"]
[TimeControl "180+1"]
[Date "2023.10.31"]
[WhiteClock "0:01:47"]
[BlackClock "0:01:03"]
[Board "177"]

1. d4 {[%clk 0:02:59]}  Nf6 {[%clk 0:02:57]} 2. Nf3 {[%clk 0:02:59]}  e6 {[%clk 0:02:57]} 3. c4 {[%clk 0:02:59]}  d5 {[%clk 0:02:57]} 4. g3 {[%clk 0:02:59]}  c5 {[%clk 0:02:56]} 5. cxd5 {[%clk 0:02:59]}  Nxd5 {[%clk 0:02:56]} 6. Bg2 {[%clk 0:02:59]}  cxd4 {[%clk 0:02:54]} 7. O-O {[%clk 0:02:58]}  Nc6 {[%clk 0:02:51]} 8. Nxd4 {[%clk 0:02:58]}  Nxd4 {[%clk 0:02:51]} 9. Qxd4 {[%clk 0:02:58]}  Qf6 {[%clk 0:02:47]} 10. Qa4+ {[%clk 0:02:56]}  Bd7 {[%clk 0:02:44]} 11. Qb3 {[%clk 0:02:55]}  Bc6 {[%clk 0:02:42]} 12. Nd2 {[%clk 0:02:54]}  Qe7 {[%clk 0:02:24]} 13. Nc4 {[%clk 0:02:50]}  Qb4 {[%clk 0:02:20]} 14. Qc2 {[%clk 0:02:43]}  Be7 {[%clk 0:02:15]} 15. Bd2 {[%clk 0:02:40]}  Qb5 {[%clk 0:02:12]} 16. a4 {[%clk 0:02:16]}  Qa6 {[%clk 0:01:58]} 17. Rfb1 {[%clk 0:02:01]}  Nf6 {[%clk 0:01:42]} 18. b4 {[%clk 0:01:54]}  b5 {[%clk 0:01:14]} 19. axb5 {[%clk 0:01:51]}  Qxb5 {[%clk 0:01:14]} 20. Nd6+ {[%clk 0:01:48]}  Bxd6 {[%clk 0:01:03]} 21. Bxc6+ {[%clk 0:01:47]} 1-0


[Site "https://www.chess.com"]

[Event "Titled Tuesday Blitz October 31 Early 2023"]
[White "Aslanov, Umid"]
[Black "DonCiao"]
[WhiteFideId "13412620"]
[WhiteElo "2562"]
[BlackElo "2124"]
[Result "0-1"]
[Round "1"]
[TimeControl "180+1"]
[Date "2023.10.31"]
[WhiteClock "0:00:04"]
[BlackClock "0:00:26"]
[Board "181"]

1. e4 {[%clk 0:03:00]}  c5 {[%clk 0:02:58]} 2. Nf3 {[%clk 0:03:01]}  Nc6 {[%clk 0:02:58]} 3. d4 {[%clk 0:03:02]}  cxd4 {[%clk 0:02:58]} 4. Nxd4 {[%clk 0:03:02]}  Nf6 {[%clk 0:02:57]} 5. Nc3 {[%clk 0:03:03]}  e5 {[%clk 0:02:57]} 6. Ndb5 {[%clk 0:03:04]}  d6 {[%clk 0:02:57]} 7. Bg5 {[%clk 0:03:04]}  a6 {[%clk 0:02:56]} 8. Na3 {[%clk 0:03:05]}  b5 {[%clk 0:02:56]} 9. Nd5 {[%clk 0:03:06]}  Be7 {[%clk 0:02:57]} 10. Bxf6 {[%clk 0:03:07]}  Bxf6 {[%clk 0:02:57]} 11. c3 {[%clk 0:03:08]}  Bg5 {[%clk 0:02:56]} 12. Nc2 {[%clk 0:03:08]}  O-O {[%clk 0:02:56]} 13. a4 {[%clk 0:03:07]}  bxa4 {[%clk 0:02:55]} 14. Rxa4 {[%clk 0:03:08]}  a5 {[%clk 0:02:55]} 15. Bc4 {[%clk 0:03:07]}  Rb8 {[%clk 0:02:55]} 16. b3 {[%clk 0:03:08]}  Ne7 {[%clk 0:02:47]} 17. h4 {[%clk 0:03:06]}  Bh6 {[%clk 0:02:43]} 18. Nce3 {[%clk 0:03:06]}  Kh8 {[%clk 0:02:31]} 19. Nxe7 {[%clk 0:03:05]}  Qxe7 {[%clk 0:02:30]} 20. Nd5 {[%clk 0:03:05]}  Qd8 {[%clk 0:02:19]} 21. g4 {[%clk 0:02:59]}  Bf4 {[%clk 0:02:10]} 22. Nxf4 {[%clk 0:02:42]}  exf4 {[%clk 0:02:09]} 23. f3 {[%clk 0:02:41]}  Be6 {[%clk 0:02:07]} 24. Bxe6 {[%clk 0:02:29]}  fxe6 {[%clk 0:02:07]} 25. Rd4 {[%clk 0:02:30]}  d5 {[%clk 0:02:05]} 26. exd5 {[%clk 0:02:27]}  exd5 {[%clk 0:02:01]} 27. Kf2 {[%clk 0:02:27]}  Qb6 {[%clk 0:02:01]} 28. Qd2 {[%clk 0:01:59]}  Qxb3 {[%clk 0:01:57]} 29. Rxf4 {[%clk 0:01:59]}  Rxf4 {[%clk 0:01:40]} 30. Qxf4 {[%clk 0:02:00]}  a4 {[%clk 0:01:31]} 31. h5 {[%clk 0:02:00]}  Re8 {[%clk 0:01:23]} 32. Re1 {[%clk 0:01:49]}  Qb2+ {[%clk 0:01:19]} 33. Kg3 {[%clk 0:01:49]}  Qb8 {[%clk 0:01:05]} 34. Qxb8 {[%clk 0:01:38]}  Rxb8 {[%clk 0:01:05]} 35. Ra1 {[%clk 0:01:39]}  Ra8 {[%clk 0:01:04]} 36. Kf4 {[%clk 0:01:39]}  Kg8 {[%clk 0:01:01]} 37. Ke5 {[%clk 0:01:40]}  Ra5 {[%clk 0:01:00]} 38. Ra3 {[%clk 0:01:29]}  Kf7 {[%clk 0:00:59]} 39. f4 {[%clk 0:01:29]}  Ke7 {[%clk 0:00:58]} 40. g5 {[%clk 0:01:29]}  g6 {[%clk 0:00:50]} 41. f5 {[%clk 0:01:27]}  d4+ {[%clk 0:00:46]} 42. Kf4 {[%clk 0:01:20]}  Rxf5+ {[%clk 0:00:43]} 43. Kg4 {[%clk 0:01:21]}  d3 {[%clk 0:00:40]} 44. Rxa4 {[%clk 0:01:21]}  Rd5 {[%clk 0:00:38]} 45. Ra1 {[%clk 0:01:09]}  d2 {[%clk 0:00:37]} 46. Rd1 {[%clk 0:01:10]}  gxh5+ {[%clk 0:00:35]} 47. Kxh5 {[%clk 0:01:08]}  Kd6 {[%clk 0:00:33]} 48. Kg4 {[%clk 0:01:06]}  Kc5 {[%clk 0:00:33]} 49. Kf3 {[%clk 0:00:06]}  Kc4 {[%clk 0:00:33]} 50. Ke4 {[%clk 0:00:06]}  Rd3 {[%clk 0:00:29]} 51. Ke5 {[%clk 0:00:05]}  Kxc3 {[%clk 0:00:29]} 52. Ke4 {[%clk 0:00:04]}  Kc2 {[%clk 0:00:27]} 53. Ra1 {[%clk 0:00:04]}  d1=Q {[%clk 0:00:27]} 54. Rc1+ {[%clk 0:00:04]}  Kxc1 {[%clk 0:00:26]} 0-1


[Site "https://www.chess.com"]

[Event "Titled Tuesday Blitz October 31 Early 2023"]
[White "Nurmanova, Alua"]
[Black "Baruch, Liam"]
[WhiteFideId "13729390"]
[BlackFideId "14322064"]
[WhiteElo "2559"]
[BlackElo "2114"]
[Result "1-0"]
[Round "1"]
[TimeControl "180+1"]
[Date "2023.10.31"]
[WhiteClock "0:00:24"]
[BlackClock "0:00:26"]
[Board "183"]

1. e4 {[%clk 0:03:00]}  e5 {[%clk 0:02:59]} 2. Nf3 {[%clk 0:02:59]}  Nc6 {[%clk 0:03:00]} 3. Bb5 {[%clk 0:02:59]}  a6 {[%clk 0:03:00]} 4. Ba4 {[%clk 0:03:00]}  Nf6 {[%clk 0:02:59]} 5. O-O {[%clk 0:03:00]}  b5 {[%clk 0:03:00]} 6. Bb3 {[%clk 0:03:00]}  Bc5 {[%clk 0:03:01]} 7. a4 {[%clk 0:02:57]}  Rb8 {[%clk 0:03:00]} 8. c3 {[%clk 0:02:58]}  d6 {[%clk 0:03:00]} 9. d4 {[%clk 0:02:58]}  Bb6 {[%clk 0:03:00]} 10. a5 {[%clk 0:02:58]}  Ba7 {[%clk 0:02:59]} 11. h3 {[%clk 0:02:58]}  O-O {[%clk 0:02:56]} 12. Be3 {[%clk 0:02:58]}  exd4 {[%clk 0:02:49]} 13. cxd4 {[%clk 0:02:54]}  d5 {[%clk 0:02:35]} 14. e5 {[%clk 0:02:49]}  Ne4 {[%clk 0:02:33]} 15. Nbd2 {[%clk 0:02:42]}  Ne7 {[%clk 0:02:29]} 16. Nxe4 {[%clk 0:02:32]}  dxe4 {[%clk 0:02:30]} 17. Ng5 {[%clk 0:02:32]}  Bf5 {[%clk 0:02:12]} 18. d5 {[%clk 0:02:03]}  Bxe3 {[%clk 0:02:04]} 19. fxe3 {[%clk 0:02:04]}  Bg6 {[%clk 0:02:03]} 20. d6 {[%clk 0:01:58]}  cxd6 {[%clk 0:02:02]} 21. exd6 {[%clk 0:01:59]}  Nf5 {[%clk 0:02:01]} 22. Nxf7 {[%clk 0:01:32]}  Rxf7 {[%clk 0:01:32]} 23. Bxf7+ {[%clk 0:01:31]}  Kxf7 {[%clk 0:01:32]} 24. Qd5+ {[%clk 0:01:22]}  Kf8 {[%clk 0:01:17]} 25. g4 {[%clk 0:01:07]}  Qg5 {[%clk 0:01:14]} 26. Kh2 {[%clk 0:01:05]}  Qxe3 {[%clk 0:00:47]} 27. gxf5 {[%clk 0:01:02]}  Bh5 {[%clk 0:00:43]} 28. Rae1 {[%clk 0:00:50]}  Qh6 {[%clk 0:00:31]} 29. f6 {[%clk 0:00:46]}  gxf6 {[%clk 0:00:27]} 30. d7 {[%clk 0:00:45]}  Rd8 {[%clk 0:00:21]} 31. Rxe4 {[%clk 0:00:40]}  Bf7 {[%clk 0:00:20]} 32. Qd6+ {[%clk 0:00:39]}  Kg8 {[%clk 0:00:20]} 33. Rf2 {[%clk 0:00:26]}  Bg6 {[%clk 0:00:18]} 34. Ree2 {[%clk 0:00:18]}  Qf8 {[%clk 0:00:16]} 35. Qxf8+ {[%clk 0:00:16]}  Kxf8 {[%clk 0:00:15]} 36. Rxf6+ {[%clk 0:00:16]}  Kg7 {[%clk 0:00:16]} 37. Rd6 {[%clk 0:00:17]}  Bf5 {[%clk 0:00:15]} 38. Re7+ {[%clk 0:00:16]}  Kf8 {[%clk 0:00:14]} 39. Re8+ {[%clk 0:00:16]}  Rxe8 {[%clk 0:00:13]} 40. dxe8=Q+ {[%clk 0:00:17]}  Kxe8 {[%clk 0:00:14]} 41. Rxa6 {[%clk 0:00:18]}  Bd3 {[%clk 0:00:12]} 42. Rb6 {[%clk 0:00:18]}  b4 {[%clk 0:00:12]} 43. a6 {[%clk 0:00:18]}  Kd8 {[%clk 0:00:12]} 44. a7 {[%clk 0:00:19]}  Be4 {[%clk 0:00:13]} 45. Rb8+ {[%clk 0:00:18]}  Kc7 {[%clk 0:00:14]} 46. a8=Q {[%clk 0:00:19]}  Bxa8 {[%clk 0:00:15]} 47. Rxa8 {[%clk 0:00:19]}  h5 {[%clk 0:00:16]} 48. Rh8 {[%clk 0:00:18]}  Kd6 {[%clk 0:00:15]} 49. Rxh5 {[%clk 0:00:19]}  Ke6 {[%clk 0:00:16]} 50. Kg3 {[%clk 0:00:20]}  Kd6 {[%clk 0:00:16]} 51. Ra5 {[%clk 0:00:20]}  Ke6 {[%clk 0:00:17]} 52. Rb5 {[%clk 0:00:21]}  b3 {[%clk 0:00:17]} 53. Rxb3 {[%clk 0:00:21]}  Kd5 {[%clk 0:00:18]} 54. Rf3 {[%clk 0:00:21]}  Kd4 {[%clk 0:00:19]} 55. h4 {[%clk 0:00:22]}  Ke4 {[%clk 0:00:20]} 56. h5 {[%clk 0:00:23]}  Ke5 {[%clk 0:00:21]} 57. h6 {[%clk 0:00:24]}  Ke6 {[%clk 0:00:22]} 58. h7 {[%clk 0:00:24]}  Kd6 {[%clk 0:00:23]} 59. h8=Q {[%clk 0:00:25]}  Kd5 {[%clk 0:00:23]} 60. Qf6 {[%clk 0:00:24]}  Ke4 {[%clk 0:00:24]} 61. Qf5+ {[%clk 0:00:23]}  Kd4 {[%clk 0:00:24]} 62. Rd3+ {[%clk 0:00:23]}  Kc4 {[%clk 0:00:25]} 63. Qd5+ {[%clk 0:00:23]}  Kb4 {[%clk 0:00:25]} 64. Rb3+ {[%clk 0:00:24]}  Ka4 {[%clk 0:00:26]} 65. Qb5# {[%clk 0:00:24]} 1-0


[Site "https://www.chess.com"]

[Event "Titled Tuesday Blitz October 31 Early 2023"]
[White "chess123456s"]
[Black "spiritof_stlouis"]
[WhiteElo "2550"]
[BlackElo "2079"]
[Result "1-0"]
[Round "1"]
[TimeControl "180+1"]
[Date "2023.10.31"]
[WhiteClock "0:00:52"]
[BlackClock "0:00:22"]
[Board "187"]

1. d4 {[%clk 0:03:00]}  c5 {[%clk 0:02:55]} 2. d5 {[%clk 0:03:00]}  g6 {[%clk 0:02:53]} 3. Nc3 {[%clk 0:02:59]}  Bg7 {[%clk 0:02:53]} 4. e4 {[%clk 0:03:00]}  d6 {[%clk 0:02:53]} 5. Bb5+ {[%clk 0:03:00]}  Bd7 {[%clk 0:02:52]} 6. a4 {[%clk 0:03:01]}  Nf6 {[%clk 0:02:51]} 7. Nf3 {[%clk 0:03:01]}  O-O {[%clk 0:02:51]} 8. O-O {[%clk 0:03:02]}  a6 {[%clk 0:02:52]} 9. Be2 {[%clk 0:03:02]}  Bg4 {[%clk 0:02:48]} 10. Nd2 {[%clk 0:03:02]}  Bxe2 {[%clk 0:02:47]} 11. Qxe2 {[%clk 0:03:03]}  e6 {[%clk 0:02:46]} 12. Nc4 {[%clk 0:03:02]}  e5 {[%clk 0:02:39]} 13. f4 {[%clk 0:02:58]}  exf4 {[%clk 0:02:19]} 14. Bxf4 {[%clk 0:02:59]}  Ne8 {[%clk 0:02:16]} 15. a5 {[%clk 0:02:50]}  Qc7 {[%clk 0:02:13]} 16. e5 {[%clk 0:02:32]}  dxe5 {[%clk 0:01:51]} 17. Nxe5 {[%clk 0:02:30]}  Qe7 {[%clk 0:01:41]} 18. Rae1 {[%clk 0:02:23]}  Nd7 {[%clk 0:01:39]} 19. d6 {[%clk 0:01:49]}  Nxd6 {[%clk 0:01:31]} 20. Nd5 {[%clk 0:01:48]}  Qd8 {[%clk 0:01:21]} 21. Nxd7 {[%clk 0:01:45]}  Qxd7 {[%clk 0:01:19]} 22. Nb6 {[%clk 0:01:45]}  Qc6 {[%clk 0:01:04]} 23. Nxa8 {[%clk 0:01:44]}  Rxa8 {[%clk 0:01:05]} 24. Kh1 {[%clk 0:01:38]}  Nf5 {[%clk 0:00:56]} 25. c3 {[%clk 0:01:36]}  h6 {[%clk 0:00:54]} 26. Qe4 {[%clk 0:01:35]}  Qb5 {[%clk 0:00:51]} 27. Be5 {[%clk 0:01:33]}  Re8 {[%clk 0:00:43]} 28. c4 {[%clk 0:01:14]}  Rxe5 {[%clk 0:00:33]} 29. cxb5 {[%clk 0:01:03]}  Rxe4 {[%clk 0:00:33]} 30. Rxe4 {[%clk 0:01:04]}  Bxb2 {[%clk 0:00:33]} 31. Re8+ {[%clk 0:01:01]}  Kg7 {[%clk 0:00:33]} 32. Rb8 {[%clk 0:01:01]}  axb5 {[%clk 0:00:33]} 33. Rxb7 {[%clk 0:01:01]}  Nd6 {[%clk 0:00:26]} 34. Rb6 {[%clk 0:00:54]}  Be5 {[%clk 0:00:26]} 35. a6 {[%clk 0:00:52]}  b4 {[%clk 0:00:22]} 36. a7 {[%clk 0:00:52]} 1-0


[Site "https://www.chess.com"]

[Event "Titled Tuesday Blitz October 31 Early 2023"]
[White "Herzog2012"]
[Black "Sailer, Mike"]
[BlackFideId "2012901"]
[WhiteElo "2541"]
[BlackElo "2041"]
[Result "1-0"]
[Round "1"]
[TimeControl "180+1"]
[Date "2023.10.31"]
[WhiteClock "0:00:54"]
[BlackClock "0:00:00"]
[Board "191"]

1. e4 {[%clk 0:02:59]}  d5 {[%clk 0:02:54]} 2. exd5 {[%clk 0:02:59]}  Qxd5 {[%clk 0:02:54]} 3. Nc3 {[%clk 0:03:00]}  Qd6 {[%clk 0:02:54]} 4. d4 {[%clk 0:03:00]}  c6 {[%clk 0:02:55]} 5. Nf3 {[%clk 0:02:58]}  Bg4 {[%clk 0:02:55]} 6. h3 {[%clk 0:02:57]}  Bh5 {[%clk 0:02:42]} 7. g4 {[%clk 0:02:56]}  Bg6 {[%clk 0:02:42]} 8. Ne5 {[%clk 0:02:56]}  Nf6 {[%clk 0:02:17]} 9. Bg2 {[%clk 0:02:50]}  Nbd7 {[%clk 0:02:14]} 10. Nxg6 {[%clk 0:02:35]}  hxg6 {[%clk 0:02:07]} 11. Be3 {[%clk 0:02:34]}  e6 {[%clk 0:02:00]} 12. Qd2 {[%clk 0:02:29]}  Qc7 {[%clk 0:01:52]} 13. O-O-O {[%clk 0:02:23]}  O-O-O {[%clk 0:01:45]} 14. Rhe1 {[%clk 0:02:06]}  Nb6 {[%clk 0:01:39]} 15. Qe2 {[%clk 0:01:55]}  Nbd5 {[%clk 0:01:15]} 16. Nxd5 {[%clk 0:01:52]}  cxd5 {[%clk 0:01:06]} 17. Kb1 {[%clk 0:01:52]}  Kb8 {[%clk 0:01:05]} 18. Rc1 {[%clk 0:01:51]}  Rc8 {[%clk 0:00:57]} 19. c3 {[%clk 0:01:43]}  Bd6 {[%clk 0:00:55]} 20. Rc2 {[%clk 0:01:42]}  Ka8 {[%clk 0:00:54]} 21. Rec1 {[%clk 0:01:41]}  Qc4 {[%clk 0:00:41]} 22. Qxc4 {[%clk 0:01:33]}  Rxc4 {[%clk 0:00:41]} 23. b3 {[%clk 0:01:32]}  Rc7 {[%clk 0:00:37]} 24. c4 {[%clk 0:01:32]}  Ba3 {[%clk 0:00:36]} 25. Rd1 {[%clk 0:01:30]}  Rhc8 {[%clk 0:00:35]} 26. c5 {[%clk 0:01:15]}  b6 {[%clk 0:00:20]} 27. Bf4 {[%clk 0:01:09]}  Rc6 {[%clk 0:00:17]} 28. Bc1 {[%clk 0:01:09]}  Bxc1 {[%clk 0:00:10]} 29. Rdxc1 {[%clk 0:01:09]}  bxc5 {[%clk 0:00:08]} 30. dxc5 {[%clk 0:01:09]}  Kb7 {[%clk 0:00:08]} 31. b4 {[%clk 0:01:09]}  a6 {[%clk 0:00:08]} 32. a4 {[%clk 0:01:08]}  Kc7 {[%clk 0:00:07]} 33. Kb2 {[%clk 0:01:08]}  Kd7 {[%clk 0:00:07]} 34. Ka3 {[%clk 0:01:05]}  Ne4 {[%clk 0:00:08]} 35. Bxe4 {[%clk 0:01:05]}  dxe4 {[%clk 0:00:08]} 36. b5 {[%clk 0:01:06]}  axb5 {[%clk 0:00:08]} 37. axb5 {[%clk 0:01:06]}  R6c7 {[%clk 0:00:08]} 38. Kb4 {[%clk 0:01:00]}  f5 {[%clk 0:00:06]} 39. b6 {[%clk 0:00:57]}  Rc6 {[%clk 0:00:05]} 40. Ra2 {[%clk 0:00:57]}  Rb8 {[%clk 0:00:04]} 41. Kb5 {[%clk 0:00:56]}  Rcc8 {[%clk 0:00:00]} 42. c6+ {[%clk 0:00:54]} 1-0


[Site "https://www.chess.com"]